[Event "4th Memorial Warakomska-A 2020"]
[Site "Suwalki"]
[Date "2020.08.11"]
[Round "7.8"]
[White "Rasti, Arvin"]
[Black "Budzisz, Adrian"]
[Result "1/2-1/2"]
[ECO "E12"]
[WhiteElo "2139"]
[BlackElo "1823"]
[Annotator "NA"]
[PlyCount "129"]
[EventDate "2020.08.06"]
[EventType "swiss"]
[EventCountry "POL"]
[SourceTitle "playchess.com"]
[Source "ChessBase"]
[SourceQuality "1"]
[TimeControl "40/5400+30:1800+30"]

1. d4 {[%emt 0:00:00]} Nf6 {[%emt 0:00:00]} 2. c4 {[%emt 0:00:00]} e6 {[%emt 0:00:00]} 3. Nf3 {[%emt 0:00:00]} b6 {[%emt 0:00:00]} 4. a3 {[%emt 0:00:10]} Bb7 {[%emt 0:00:11]} 5. Nc3 {[%emt 0:00:11]} d5 {[%emt 0:02:09]} 6. cxd5 {[%emt 0:00:12]} exd5 {[%emt 0:00:08]} 7. Qa4+ {[%emt 0:02:42]} Qd7 {[%emt 0:02:28] E12: Queen's Indian: Unusual White 4th moves, 4 a3, 4 Nc3 Bb7 5 a3 and 4 Nc3 Bb7 .} 8. Qxd7+ {[%emt 0:01:56]} Nfxd7 {[%emt 0:02:54]} 9. Bf4 {[%emt 0:00:48]} c6 {[%emt 0:00:18]} 10. e3 {[%emt 0:00:50] [#]} Be7 $146 {[%emt 0:00:17]} ({Predecessor:} 10... Na6 11. Bd3 Be7 12. O-O O-O 13. Rac1 Rac8 14. Bf5 Rcd8 15. Ne5 Nab8 16. Rfd1 Nxe5 17. Bxe5 Bd6 18. Bxd6 {½-½ (18) Lehmann,K-Maier,A ICCF corr 1990}) 11. Bd3 {[%emt 0:00:55]} O-O {[%emt 0:00:32]} 12. O-O {[%emt 0:00:46]} Nf6 {[%emt 0:01:04]} 13. Rac1 {[%emt 0:01:21]} Nbd7 {[%emt 0:00:10]} 14. h3 {[%emt 0:01:40]} Rfe8 {[%emt 0:00:52]} 15. Rfd1 {[%emt 0:00:51]} Bf8 {[%emt 0:00:25]} 16. Ne5 {[%emt 0:01:42]} Nxe5 {[%emt 0:00:34]} 17. Bxe5 {[%emt 0:00:07]} Nd7 {[%emt 0:00:07]} 18. Bg3 {[%emt 0:00:19]} Nf6 {[%emt 0:00:52]} 19. Bh4 {[%emt 0:02:37]} Ne4 {[%emt 0:08:22]} 20. Nxe4 {[%emt 0:00:42]} dxe4 {[%emt 0:00:52]} 21. Bc4 {[%emt 0:00:22]} Rac8 {[%emt 0:00:16]} 22. Bb3 {[%emt 0:01:19]} Bd6 {[%emt 0:00:50]} 23. Rc2 {[%emt 0:01:24]} Kf8 {[%emt 0:02:38]} 24. Bg3 {[%emt 0:01:18]} Red8 {[%emt 0:04:08]} 25. Rdc1 {[%emt 0:00:32]} Ke7 {[%emt 0:07:08]} 26. Ba4 {[%emt 0:01:51]} c5 {[%emt 0:08:00]} 27. Bxd6+ {[%emt 0:01:04]} Kxd6 {[%emt 0:01:03]} 28. dxc5+ {[%emt 0:00:13]} Rxc5 {[%emt 0:01:01]} 29. Rxc5 {[%emt 0:01:13]} bxc5 {[%emt 0:00:06]} 30. Rd1+ {[%emt 0:01:24]} Kc7 {[%emt 0:00:27]} 31. Rxd8 {[%emt 0:00:10]} Kxd8 {[%emt 0:00:05]} 32. Kf1 {[%emt 0:00:19]} Bd5 {[%emt 0:04:15]} 33. Ke1 {[%emt 0:00:29]} Kc7 {[%emt 0:00:32]} 34. Kd2 {[%emt 0:00:51]} Kd6 {[%emt 0:06:53]} 35. Kc3 {[%emt 0:00:34]} f5 {[%emt 0:03:06]} 36. b4 {[%emt 0:02:25]} g5 {[%emt 0:01:24]} 37. Bb3 {[%emt 0:01:18]} cxb4+ {[%emt 0:06:36]} 38. axb4 {[%emt 0:00:26]} Bc6 {[%emt 0:00:54]} 39. Kd4 {[%emt 0:00:36]} h5 {[%emt 0:01:19]} 40. g3 {[%emt 0:00:00]} h4 $1 {[%emt 0:00:00]} 41. gxh4 {[%emt 0:01:11]} gxh4 {[%emt 0:00:48]} 42. Bc4 {[%emt 0:00:28]} Bd7 {[%emt 0:00:27]} 43. Ba6 {[%emt 0:01:10]} Be6 {[%emt 0:00:54]} 44. Bf1 {[%emt 0:01:56]} Bd7 {[%emt 0:01:48]} 45. Kc4 {[%emt 0:01:25]} Ba4 {[%emt 0:05:23]} 46. b5 {[%emt 0:00:55]} Bd1 {[%emt 0:01:14]} 47. Kb4 {[%emt 0:00:08]} Bc2 {[%emt 0:01:38]} 48. Bc4 $11 {[%emt 0:05:17]} Ke5 {[%emt 0:10:51]} 49. Ka5 {[%emt 0:04:05]} Bd3 {[%emt 0:02:54]} 50. Bf7 {[%emt 0:00:17]} f4 {[%emt 0:02:43]} 51. Be8 {[%emt 0:02:31]} fxe3 {[%emt 0:00:28]} 52. fxe3 {[%emt 0:00:01]} Kd6 {[%emt 0:00:05]} 53. Ka6 {[%emt 0:01:21]} Kc5 54. Bc6 {[%emt 0:00:34]} Bf1 {[%emt 0:02:06]} 55. Kxa7 {[%emt 0:00:39]} Bxb5 {[%emt 0:00:57]} 56. Bxe4 {[%emt 0:00:07]} Bd7 {[%emt 0:00:19]} 57. Bg2 {[%emt 0:00:07]} Bc6 {[%emt 0:00:54]} 58. Bf1 {[%emt 0:00:07]} Bf3 {[%emt 0:01:34]} 59. Bd3 {[%emt 0:03:57]} Kd5 {[%emt 0:00:57]} 60. Kb6 {[%emt 0:01:48]} Ke5 {[%emt 0:00:14]} 61. Bb5 {[%emt 0:01:16]} Ke4 {[%emt 0:00:43]} 62. Kc5 {[%emt 0:00:49]} Kxe3 {[%emt 0:00:28]} 63. Bd7 {[%emt 0:00:13]} Bg2 {[%emt 0:00:09]} 64. Bc8 {[%emt 0:00:17]} Be4 {[%emt 0:02:46]} 65. Bd7 {[%emt 0:00:20]} 1/2-1/2

[Event "4th Memorial Warakomska-A 2020"]
[Site "Suwalki"]
[Date "2020.08.11"]
[Round "7.9"]
[White "Leskiewicz, Ignacy"]
[Black "Krasiewicz, Robert"]
[Result "1-0"]
[ECO "B06"]
[WhiteElo "2190"]
[BlackElo "2033"]
[Annotator "ChessBase"]
[PlyCount "45"]
[EventDate "2020.08.06"]
[EventType "swiss"]
[EventCountry "POL"]
[SourceTitle "playchess.com"]
[Source "ChessBase"]
[SourceQuality "1"]
[TimeControl "40/5400+30:1800+30"]

1. e4 {[%emt 0:00:00]} g6 {[%emt 0:00:00]} 2. d4 {[%emt 0:00:43]} Bg7 {[%emt 0:00:00]} 3. Nc3 {[%emt 0:00:19]} d6 {[%emt 0:00:00]} 4. Be3 {[%emt 0:02:15]} a6 {[%emt 0:00:00]} 5. Qd2 {[%emt 0:00:21]} b5 {[%emt 0:00:00]} 6. h4 {[%emt 0:00:29]} Nf6 {[%emt 0:00:29]} 7. f3 {[%emt 0:00:41]} h5 {[%emt 0:00:07]} 8. O-O-O {[%emt 0:00:17]} c6 {[%emt 0:00:05]} 9. Kb1 {[%emt 0:03:41]} Qc7 {[%emt 0:00:04]} 10. Bf4 {[%emt 0:16:04]} b4 {[%emt 0:10:58]} 11. Na4 {[%emt 0:08:33]} a5 {[%emt 0:02:17]} 12. Bc4 {[%emt 0:06:04]} Ba6 {[%emt 0:06:37]} 13. Bb3 {[%emt 0:05:39]} O-O {[%emt 0:01:29]} 14. e5 {[%emt 0:11:52]} Nd5 {[%emt 0:01:36]} 15. exd6 {[%emt 0:01:08]} exd6 {[%emt 0:00:14]} 16. g4 {[%emt 0:00:13]} Nxf4 {[%emt 0:03:03]} 17. Qxf4 {[%emt 0:00:17]} hxg4 {[%emt 0:04:04]} 18. h5 {[%emt 0:01:46]} gxh5 {[%emt 0:00:49]} 19. Rxh5 {[%emt 0:09:34]} Nd7 {[%emt 0:03:31]} 20. Rg5 {[%emt 0:10:43]} Kh8 {[%emt 0:16:04]} 21. Rxg7 {[%emt 0:00:16]} Kxg7 {[%emt 0:00:05]} 22. Qg5+ {[%emt 0:00:06]} Kh8 {[%emt 0:00:58]} 23. Ne2 {[%emt 0:00:05]} 1-0

[Event "4th Memorial Warakomska-A 2020"]
[Site "Suwalki"]
[Date "2020.08.11"]
[Round "7.10"]
[White "Bugajski, Robert"]
[Black "Korbal, Arkadiusz"]
[Result "1-0"]
[ECO "A71"]
[WhiteElo "2081"]
[BlackElo "2113"]
[Annotator "RC"]
[PlyCount "97"]
[EventDate "2020.08.06"]
[EventType "swiss"]
[EventCountry "POL"]
[SourceTitle "playchess.com"]
[Source "ChessBase"]
[SourceQuality "1"]
[TimeControl "40/5400+30:1800+30"]

1. d4 {[%emt 0:00:00]} Nf6 {[%emt 0:00:00]} 2. c4 {[%emt 0:00:00]} e6 {[%emt 0:01:00]} 3. Nc3 {[%emt 0:00:00]} c5 {[%emt 0:03:05]} 4. d5 {[%emt 0:00:28]} exd5 {[%emt 0:00:07]} 5. cxd5 {[%emt 0:00:11]} d6 {[%emt 0:00:13]} 6. e4 {[%emt 0:01:06]} g6 {[%emt 0:00:15]} 7. Nf3 {[%emt 0:00:28]} Bg7 {[%emt 0:00:24]} 8. Bg5 {[%emt 0:00:09]} a6 {[%emt 0:01:10]} 9. a4 {[%emt 0:04:43]} h6 {[%emt 0:00:30]} 10. Bh4 {[%emt 0:00:56]} O-O {[%emt 0:01:03]} 11. Nd2 {[%emt 0:00:20]} g5 {[%emt 0:07:39]} 12. Bg3 {[%emt 0:00:03]} Bg4 {[%emt 0:06:34]} 13. Be2 {[%emt 0:02:45]} Bxe2 {[%emt 0:00:24]} 14. Qxe2 {[%emt 0:00:29]} Qc7 {[%emt 0:09:16]} 15. O-O {[%emt 0:02:24]} Nbd7 {[%emt 0:00:27]} 16. Nc4 {[%emt 0:00:49]} Ne8 {[%emt 0:04:47]} 17. a5 {[%emt 0:04:43]} Ne5 {[%emt 0:07:53]} 18. Ne3 {[%emt 0:17:49]} Ng6 {[%emt 0:13:59]} 19. Nf5 {[%emt 0:01:22]} Ne7 {[%emt 0:00:21]} 20. Nxg7 {[%emt 0:02:20]} Nxg7 {[%emt 0:00:36]} 21. f4 {[%emt 0:04:09]} f6 {[%emt 0:02:21]} 22. h4 {[%emt 0:06:18]} Rae8 {[%emt 0:02:12]} 23. Qd1 {[%emt 0:12:25]} Ng6 {[%emt 0:01:27]} 24. fxg5 {[%emt 0:04:43]} fxg5 {[%emt 0:02:08]} 25. hxg5 {[%emt 0:06:06]} Rxf1+ {[%emt 0:03:31]} 26. Qxf1 {[%emt 0:00:31]} Rf8 {[%emt 0:02:09]} 27. Qe2 {[%emt 0:00:37]} hxg5 {[%emt 0:00:21]} 28. Qg4 {[%emt 0:09:54]} Qe7 {[%emt 0:00:17]} 29. Rf1 {[%emt 0:00:23]} Rxf1+ {[%emt 0:01:19]} 30. Kxf1 {[%emt 0:00:03]} Ne5 {[%emt 0:01:50]} 31. Qc8+ {[%emt 0:02:38]} Kh7 {[%emt 0:00:23]} 32. Kg1 {[%emt 0:03:04]} Kg6 {[%emt 0:03:51]} 33. Nd1 {[%emt 0:00:55]} Nd3 {[%emt 0:02:29]} 34. Qg4 {[%emt 0:00:44]} Qf6 {[%emt 0:01:31]} 35. Qf3 {[%emt 0:03:20]} Qd4+ {[%emt 0:01:17]} 36. Qe3 {[%emt 0:01:27]} Qxe3+ {[%emt 0:04:17]} 37. Nxe3 {[%emt 0:00:02]} Ne8 {[%emt 0:00:09]} 38. Nc4 {[%emt 0:00:26]} Nf6 {[%emt 0:02:04]} 39. Nxd6 {[%emt 0:01:41]} Nxb2 {[%emt 0:00:06]} 40. Be5 {[%emt 0:00:00]} Nd1 {[%emt 0:00:00]} 41. Nxb7 {[%emt 0:07:42]} Nd7 {[%emt 0:04:50]} 42. Ba1 {[%emt 0:03:07]} c4 {[%emt 0:02:23]} 43. Kf1 {[%emt 0:13:15]} Ne3+ {[%emt 0:05:33]} 44. Kf2 {[%emt 0:01:17]} Ng4+ {[%emt 0:05:19]} 45. Ke2 {[%emt 0:01:29]} Ngf6 {[%emt 0:06:37]} 46. Ke3 {[%emt 0:01:32]} Ng4+ {[%emt 0:03:49]} 47. Kd4 {[%emt 0:00:24]} Kh5 {[%emt 0:00:50]} 48. Nc5 {[%emt 0:01:48]} Nb8 {[%emt 0:03:12]} 49. e5 {[%emt 0:01:18]} 1-0

[Event "4th Memorial Warakomska-A 2020"]
[Site "Suwalki"]
[Date "2020.08.11"]
[Round "7.11"]
[White "Godzwon, Iwo"]
[Black "Choroszej, Aleksander"]
[Result "1-0"]
[ECO "B09"]
[WhiteElo "2347"]
[BlackElo "2059"]
[Annotator "ChessBase"]
[PlyCount "79"]
[EventDate "2020.08.06"]
[EventType "swiss"]
[EventCountry "POL"]
[SourceTitle "playchess.com"]
[Source "ChessBase"]
[SourceQuality "1"]
[TimeControl "40/5400+30:1800+30"]

1. e4 {[%emt 0:00:00]} g6 {[%emt 0:02:09]} 2. d4 {[%emt 0:00:00]} Bg7 {[%emt 0:00:08]} 3. Nc3 {[%emt 0:00:00]} d6 {[%emt 0:00:23]} 4. f4 {[%emt 0:00:00]} Nf6 {[%emt 0:00:50]} 5. Nf3 {[%emt 0:00:00]} O-O {[%emt 0:00:07]} 6. Be3 {[%emt 0:00:48]} b6 {[%emt 0:02:41]} 7. Qd2 {[%emt 0:00:28]} Bb7 {[%emt 0:00:28]} 8. e5 {[%emt 0:00:12]} Ng4 {[%emt 0:03:50]} 9. O-O-O {[%emt 0:00:48]} Nxe3 {[%emt 0:09:57]} 10. Qxe3 {[%emt 0:00:21]} Qc8 {[%emt 0:00:17]} 11. Bc4 {[%emt 0:24:47]} c5 {[%emt 0:28:49]} 12. dxc5 {[%emt 0:15:45]} dxe5 {[%emt 0:01:39]} 13. fxe5 {[%emt 0:12:56]} e6 {[%emt 0:23:28]} 14. Ne4 {[%emt 0:20:09]} Bxe4 {[%emt 0:10:08]} 15. Qxe4 {[%emt 0:00:04]} Qc6 {[%emt 0:00:13]} 16. Qxc6 {[%emt 0:00:54]} Nxc6 {[%emt 0:00:07]} 17. cxb6 {[%emt 0:00:02]} axb6 {[%emt 0:00:09]} 18. Rhe1 {[%emt 0:02:55]} Ra5 {[%emt 0:00:21]} 19. Rd6 {[%emt 0:01:05]} Rc5 {[%emt 0:00:10]} 20. Bb5 {[%emt 0:03:09]} Nb4 {[%emt 0:04:18]} 21. c4 {[%emt 0:00:03]} Nxa2+ {[%emt 0:01:18]} 22. Kb1 {[%emt 0:00:35]} Nb4 {[%emt 0:00:43]} 23. Rxb6 {[%emt 0:01:09]} Nd3 {[%emt 0:04:53]} 24. Re2 {[%emt 0:00:04]} Rfc8 {[%emt 0:00:13]} 25. Kc2 {[%emt 0:04:58]} Nxe5 {[%emt 0:00:28]} 26. Nxe5 {[%emt 0:00:06]} Bxe5 {[%emt 0:02:14]} 27. b4 {[%emt 0:05:10]} Rd5 {[%emt 0:00:03]} 28. Ba6 {[%emt 0:01:26]} Rc7 {[%emt 0:00:15]} 29. g3 {[%emt 0:00:25]} Bd4 {[%emt 0:00:39]} 30. Rb7 {[%emt 0:01:19]} Rxb7 {[%emt 0:03:25]} 31. Bxb7 {[%emt 0:00:03]} Rd7 {[%emt 0:00:23]} 32. Bc6 {[%emt 0:03:05]} Rc7 {[%emt 0:00:16]} 33. b5 {[%emt 0:00:03]} Kf8 {[%emt 0:00:39]} 34. Kd3 {[%emt 0:00:46]} Bc5 {[%emt 0:00:27]} 35. Rb2 {[%emt 0:00:08]} Ke7 {[%emt 0:00:18]} 36. Rb1 {[%emt 0:03:06]} f5 {[%emt 0:00:26]} 37. Bg2 {[%emt 0:00:31]} Bb6 {[%emt 0:00:25]} 38. Kc3 {[%emt 0:00:04]} Kd6 {[%emt 0:00:41]} 39. Bc6 {[%emt 0:01:10]} Ra7 {[%emt 0:00:59]} 40. Kb3 {[%emt 0:00:00]} 1-0

[Event "4th Memorial Warakomska-A 2020"]
[Site "Suwalki"]
[Date "2020.08.11"]
[Round "7.12"]
[White "Szustakowski, Antoni"]
[Black "Jarocka, Liwia"]
[Result "1/2-1/2"]
[ECO "E10"]
[WhiteElo "2295"]
[BlackElo "1934"]
[Annotator "ChessBase"]
[PlyCount "112"]
[EventDate "2020.08.06"]
[EventType "swiss"]
[EventCountry "POL"]
[SourceTitle "playchess.com"]
[Source "ChessBase"]
[SourceQuality "1"]
[TimeControl "40/5400+30:1800+30"]

1. d4 {[%emt 0:00:00]} Nf6 {[%emt 0:00:00]} 2. c4 {[%emt 0:00:00]} e6 {[%emt 0:00:00]} 3. Nf3 {[%emt 0:00:00]} d5 {[%emt 0:00:00]} 4. g3 {[%emt 0:00:11]} Bb4+ {[%emt 0:00:52]} 5. Bd2 {[%emt 0:00:08]} Be7 {[%emt 0:00:16]} 6. Bg2 {[%emt 0:00:07]} O-O {[%emt 0:00:14]} 7. O-O {[%emt 0:00:06]} c6 {[%emt 0:00:12]} 8. Qc2 {[%emt 0:00:16]} b6 {[%emt 0:00:29]} 9. Bf4 {[%emt 0:00:35]} Bb7 {[%emt 0:02:17]} 10. Rd1 {[%emt 0:04:38]} Nbd7 {[%emt 0:00:19]} 11. Nc3 {[%emt 0:02:33]} dxc4 {[%emt 0:01:17]} 12. Ne5 {[%emt 0:00:24]} Nd5 {[%emt 0:00:21]} 13. Nxc4 {[%emt 0:01:51]} Nxf4 {[%emt 0:00:37]} 14. gxf4 {[%emt 0:00:05]} Qc7 {[%emt 0:00:32]} 15. Ne5 {[%emt 0:01:13]} Rac8 {[%emt 0:10:27]} 16. Rac1 {[%emt 0:02:34]} a6 {[%emt 0:07:24]} 17. Nxd7 {[%emt 0:18:52]} Qxd7 {[%emt 0:00:11]} 18. Na4 {[%emt 0:00:03]} Qc7 {[%emt 0:02:01]} 19. Qb3 {[%emt 0:00:32]} b5 {[%emt 0:04:02]} 20. Nc5 {[%emt 0:00:08]} Bxc5 {[%emt 0:00:22]} 21. Rxc5 {[%emt 0:00:45]} Qxf4 {[%emt 0:00:31]} 22. e3 {[%emt 0:03:27]} Qd6 {[%emt 0:11:56]} 23. Rdc1 {[%emt 0:01:29]} g6 {[%emt 0:18:26]} 24. Qc3 {[%emt 0:01:50]} Rfd8 {[%emt 0:02:13]} 25. a4 {[%emt 0:01:47]} bxa4 {[%emt 0:03:35]} 26. Qb4 {[%emt 0:00:12]} Rb8 {[%emt 0:00:42]} 27. Qxa4 {[%emt 0:00:40]} Ba8 {[%emt 0:01:04]} 28. b3 {[%emt 0:08:03]} Rb5 {[%emt 0:09:46]} 29. Bf1 {[%emt 0:03:38]} Rb6 {[%emt 0:01:48]} 30. Bxa6 {[%emt 0:02:08]} Bb7 {[%emt 0:02:39]} 31. Bc4 {[%emt 0:08:08]} Ra8 {[%emt 0:01:33]} 32. Ra5 {[%emt 0:01:22]} Rb8 {[%emt 0:00:06]} 33. Qa3 {[%emt 0:00:45]} Qd8 {[%emt 0:02:23]} 34. Qc5 {[%emt 0:01:30]} Rb5 {[%emt 0:02:44]} 35. Bxb5 {[%emt 0:03:07]} Qxa5 {[%emt 0:02:05]} 36. Ba4 {[%emt 0:03:40]} Qd8 {[%emt 0:01:47]} 37. Qe5 {[%emt 0:02:28]} Ra8 {[%emt 0:02:51]} 38. Rc5 {[%emt 0:02:40]} Qb6 {[%emt 0:00:04]} 39. h4 {[%emt 0:01:52]} h5 {[%emt 0:02:47]} 40. Qf4 {[%emt 0:00:00]} Rd8 {[%emt 0:00:00]} 41. Kh2 {[%emt 0:06:42]} Kg7 {[%emt 0:13:47]} 42. Qe5+ {[%emt 0:01:32]} Kh7 {[%emt 0:00:37]} 43. Qf6 {[%emt 0:02:04]} Qc7+ {[%emt 0:00:30]} 44. Qe5 {[%emt 0:01:56]} Qb6 {[%emt 0:01:02]} 45. Qe4 {[%emt 0:01:55]} Rd5 {[%emt 0:03:44]} 46. Rxd5 {[%emt 0:01:44]} exd5 {[%emt 0:00:36]} 47. Qe7 {[%emt 0:00:32]} Kg7 {[%emt 0:00:39]} 48. Qd6 {[%emt 0:01:18]} Qa6 {[%emt 0:00:52]} 49. Qe5+ {[%emt 0:00:48]} Kg8 {[%emt 0:03:01]} 50. Qb8+ {[%emt 0:00:10]} Kg7 {[%emt 0:00:15]} 51. Kg1 {[%emt 0:02:11]} Qb6 {[%emt 0:00:56]} 52. Qd6 {[%emt 0:01:58]} Qa6 {[%emt 0:00:31]} 53. Qc7 {[%emt 0:00:26]} Qa8 {[%emt 0:00:08]} 54. f4 {[%emt 0:01:47]} Qa6 {[%emt 0:03:00]} 55. Kf2 {[%emt 0:00:17]} Qd3 {[%emt 0:03:10]} 56. Qxb7 {[%emt 0:00:27]} Qd2+ {[%emt 0:00:12]} 1/2-1/2

[Event "4th Memorial Warakomska-A 2020"]
[Site "Suwalki"]
[Date "2020.08.11"]
[Round "7.13"]
[White "Jurkiewicz, Krzysztof"]
[Black "Wolanski, Michal"]
[Result "0-1"]
[ECO "A64"]
[WhiteElo "2275"]
[BlackElo "2019"]
[Annotator "ChessBase"]
[PlyCount "84"]
[EventDate "2020.08.06"]
[EventType "swiss"]
[EventCountry "POL"]
[SourceTitle "playchess.com"]
[Source "ChessBase"]
[SourceQuality "1"]
[TimeControl "40/5400+30:1800+30"]

1. d4 {[%emt 0:00:00]} Nf6 {[%emt 0:00:00]} 2. c4 {[%emt 0:00:00]} e6 {[%emt 0:00:00]} 3. g3 {[%emt 0:00:00]} c5 {[%emt 0:00:00]} 4. d5 {[%emt 0:00:05]} exd5 {[%emt 0:00:00]} 5. cxd5 {[%emt 0:00:04]} d6 {[%emt 0:00:10]} 6. Nc3 {[%emt 0:00:11]} g6 {[%emt 0:00:05]} 7. Bg2 {[%emt 0:01:09]} Bg7 {[%emt 0:00:07]} 8. Nf3 {[%emt 0:00:06]} O-O {[%emt 0:00:08]} 9. O-O {[%emt 0:00:16]} Re8 {[%emt 0:00:07]} 10. Nd2 {[%emt 0:00:27]} a6 {[%emt 0:00:25]} 11. a4 {[%emt 0:00:18]} Nbd7 {[%emt 0:00:26]} 12. Nc4 {[%emt 0:07:59]} Ne5 {[%emt 0:00:36]} 13. Nxe5 {[%emt 0:02:24]} Rxe5 {[%emt 0:00:09]} 14. Bf4 {[%emt 0:02:16]} Re8 {[%emt 0:00:53]} 15. e4 {[%emt 0:13:28]} Rb8 {[%emt 0:01:10]} 16. Rb1 {[%emt 0:09:44]} b5 {[%emt 0:06:22]} 17. axb5 {[%emt 0:00:16]} axb5 {[%emt 0:01:01]} 18. b4 {[%emt 0:00:15]} Ng4 {[%emt 0:11:04]} 19. Qc2 {[%emt 0:03:28]} Qb6 {[%emt 0:13:03]} 20. h3 {[%emt 0:17:13]} cxb4 {[%emt 0:04:12]} 21. Na2 {[%emt 0:02:27]} Ne5 {[%emt 0:06:57]} 22. Rxb4 {[%emt 0:03:12]} Bd7 {[%emt 0:01:00]} 23. Rfb1 {[%emt 0:00:48]} Rec8 {[%emt 0:00:41]} 24. Qb3 {[%emt 0:00:49]} Qa6 {[%emt 0:11:37]} 25. Nc1 {[%emt 0:03:46]} Nc4 {[%emt 0:03:20]} 26. Ne2 {[%emt 0:02:59]} Na3 {[%emt 0:02:07]} 27. Rd1 {[%emt 0:01:21]} Nc2 {[%emt 0:01:48]} 28. Rb1 {[%emt 0:08:21]} Nxb4 {[%emt 0:03:30]} 29. Qxb4 {[%emt 0:00:02]} Be5 {[%emt 0:03:52]} 30. Be3 {[%emt 0:01:34]} Rc4 {[%emt 0:03:32]} 31. Qd2 {[%emt 0:01:45]} Qa4 {[%emt 0:02:55]} 32. Bf1 {[%emt 0:09:14]} Rc2 {[%emt 0:05:11]} 33. Qd3 {[%emt 0:02:14]} Qa2 {[%emt 0:01:49]} 34. Rb4 {[%emt 0:01:11]} Rbc8 {[%emt 0:02:30]} 35. Nd4 {[%emt 0:00:58]} R2c4 {[%emt 0:06:08]} 36. Rxc4 {[%emt 0:01:01]} bxc4 {[%emt 0:01:41]} 37. Qc2 {[%emt 0:02:05]} Qxc2 {[%emt 0:00:38]} 38. Nxc2 {[%emt 0:00:01]} Ba4 {[%emt 0:00:19]} 39. Na3 {[%emt 0:01:00]} c3 {[%emt 0:01:08]} 40. f4 {[%emt 0:00:00]} Bg7 {[%emt 0:00:00]} 41. Nc4 {[%emt 0:00:14]} c2 {[%emt 0:01:06]} 42. Nb6 {[%emt 0:01:09]} Bd4 {[%emt 0:00:57]} 0-1

[Event "4th Memorial Warakomska-A 2020"]
[Site "Suwalki"]
[Date "2020.08.11"]
[Round "7.14"]
[White "Jakhari, Ansh"]
[Black "Strzelecki, Jerzy"]
[Result "1-0"]
[ECO "B56"]
[WhiteElo "1908"]
[BlackElo "1977"]
[Annotator "NA"]
[PlyCount "65"]
[EventDate "2020.08.06"]
[EventType "swiss"]
[EventCountry "POL"]
[SourceTitle "playchess.com"]
[Source "ChessBase"]
[SourceQuality "1"]
[TimeControl "40/5400+30:1800+30"]

1. e4 {[%emt 0:00:00]} c5 {[%emt 0:00:00]} 2. Nf3 {[%emt 0:00:00]} d6 {[%emt 0:00:00]} 3. d4 {[%emt 0:00:00]} cxd4 {[%emt 0:00:07]} 4. Nxd4 {[%emt 0:00:09]} Nf6 {[%emt 0:00:11]} 5. Nc3 {[%emt 0:00:06]} Bd7 {[%emt 0:01:40]} 6. Be2 {[%emt 0:02:40]} e5 {[%emt 0:00:17] B56: Classical Sicilian: Unusual Lines.} 7. Nb3 {[%emt 0:00:16]} Bc6 {[%emt 0:00:40]} 8. f3 {[%emt 0:00:41]} Nbd7 {[%emt 0:00:54]} 9. Be3 {[%emt 0:00:25] [#]} a6 $146 {[%emt 0:00:18]} ({Predecessor:} 9... Be7 10. Qd2 O-O 11. O-O Nb6 12. Rad1 d5 13. exd5 Nfxd5 14. Nxd5 Nxd5 15. Bc4 Nxe3 16. Qxe3 {1-0 (29) Salavecz,G (1800)-Moritz,A (2004) Balatonalmadi 2009}) 10. Qd2 {[%emt 0:00:50]} b5 {[%emt 0:00:50]} 11. O-O-O {[%emt 0:03:47]} Qc7 {[%emt 0:01:05]} 12. Kb1 {[%emt 0:01:44]} Rc8 {[%emt 0:00:43]} 13. g4 {[%emt 0:02:17]} h6 {[%emt 0:00:37]} 14. h4 {[%emt 0:00:31]} (14. Rhe1 $14) 14... Nb6 $2 {[%emt 0:02:36]} (14... b4 $11 15. Nd5 Nxd5 16. exd5 Bxd5) 15. Bxb6 {[%emt 0:01:30]} Qxb6 {[%emt 0:00:23]} 16. Nd5 {[%emt 0:00:12]} Bxd5 {[%emt 0:03:00]} 17. exd5 {[%emt 0:00:05]} Be7 {[%emt 0:03:46]} 18. Bd3 {[%emt 0:09:23]} Rc7 {[%emt 0:11:41]} 19. Be2 {[%emt 0:03:12]} Nd7 {[%emt 0:05:09]} 20. Na5 {[%emt 0:02:14]} Nb8 {[%emt 0:02:08]} 21. g5 {[%emt 0:02:13]} b4 {[%emt 0:01:37]} 22. Nc4 {[%emt 0:00:56]} Qc5 {[%emt 0:01:36]} 23. f4 {[%emt 0:05:02]} e4 {[%emt 0:03:06]} 24. f5 {[%emt 0:05:02]} Nd7 {[%emt 0:01:28]} 25. Qf4 {[%emt 0:09:17]} Nb6 {[%emt 0:06:27]} 26. Ne3 {[%emt 0:18:19]} Na4 {[%emt 0:04:01]} 27. Qxe4 {[%emt 0:05:07]} O-O {[%emt 0:03:38]} 28. f6 $18 {[%emt 0:05:11]} ({Inferior is} 28. Bxa6 Nc3+ 29. bxc3 bxc3 $11) 28... Rb8 {[%emt 0:01:01]} 29. fxe7 {[%emt 0:03:58]} Rxe7 {[%emt 0:01:57]} 30. Qxe7 {[%emt 0:00:22]} Nc3+ {[%emt 0:01:36]} 31. bxc3 {[%emt 0:02:27]} bxc3+ {[%emt 0:00:46]} 32. Ka1 {[%emt 0:00:06]} Qa3 {[%emt 0:00:26]} 33. Nc4 1-0

[Event "4th Memorial Warakomska-A 2020"]
[Site "Suwalki"]
[Date "2020.08.11"]
[Round "7.16"]
[White "Staroszczyk, Mateusz"]
[Black "Marczukiewicz, Jerzy"]
[Result "1-0"]
[ECO "B24"]
[WhiteElo "1984"]
[BlackElo "1912"]
[Annotator "ChessBase"]
[PlyCount "55"]
[EventDate "2020.08.06"]
[EventType "swiss"]
[EventCountry "POL"]
[SourceTitle "playchess.com"]
[Source "ChessBase"]
[SourceQuality "1"]
[TimeControl "40/5400+30:1800+30"]

1. e4 {[%emt 0:00:00]} c5 {[%emt 0:00:00]} 2. Nc3 {[%emt 0:00:00]} Nc6 {[%emt 0:00:02]} 3. g3 {[%emt 0:00:00]} g6 {[%emt 0:00:30]} 4. Bg2 {[%emt 0:00:00]} Bg7 {[%emt 0:00:19]} 5. d3 {[%emt 0:00:06]} e6 {[%emt 0:01:14]} 6. Be3 {[%emt 0:00:10]} d6 {[%emt 0:00:48]} 7. Qd2 {[%emt 0:00:10]} Nge7 {[%emt 0:00:53]} 8. Bh6 {[%emt 0:00:47]} O-O {[%emt 0:00:27]} 9. h4 {[%emt 0:01:00]} Nd4 {[%emt 0:11:27]} 10. Bxg7 {[%emt 0:02:39]} Kxg7 {[%emt 0:00:17]} 11. h5 {[%emt 0:00:19]} Ng8 {[%emt 0:05:30]} 12. hxg6 {[%emt 0:02:39]} fxg6 {[%emt 0:03:42]} 13. f4 {[%emt 0:01:48]} h5 {[%emt 0:05:58]} 14. O-O-O {[%emt 0:03:34]} Bd7 {[%emt 0:03:18]} 15. Nf3 {[%emt 0:02:58]} Nh6 {[%emt 0:06:51]} 16. Ne2 {[%emt 0:04:37]} Nxe2+ {[%emt 0:09:10]} 17. Qxe2 {[%emt 0:00:05]} Qe7 {[%emt 0:02:42]} 18. Rh4 {[%emt 0:16:36]} Rh8 {[%emt 0:04:52]} 19. Rdh1 {[%emt 0:00:17]} Raf8 {[%emt 0:06:11]} 20. Qd2 {[%emt 0:09:20]} Be8 {[%emt 0:06:07]} 21. Qc3+ {[%emt 0:06:54]} Kg8 {[%emt 0:01:21]} 22. Bh3 {[%emt 0:01:47]} d5 {[%emt 0:15:15]} 23. exd5 {[%emt 0:09:28]} exd5 {[%emt 0:01:23]} 24. Re1 {[%emt 0:00:11]} Qc7 {[%emt 0:01:54]} 25. Be6+ {[%emt 0:01:06]} Bf7 {[%emt 0:01:17]} 26. Ng5 {[%emt 0:00:24]} d4 {[%emt 0:02:17]} 27. Qc4 {[%emt 0:08:26]} Nf5 {[%emt 0:02:18]} 28. Bxf7+ {[%emt 0:06:17]} 1-0